[Event "Titled Tuesday Blitz October 12 2021"]
[White "Baches Garcia, Guillermo"]
[Black "Bazeev, German"]
[WhiteFideId "2209764"]
[BlackFideId "24119350"]
[WhiteElo "2456"]
[BlackElo "2462"]
[Result "1/2-1/2"]
[Round "01"]
[TimeControl "180+1"]
[Date "2021.10.12"]
[WhiteClock "0:00:34"]
[BlackClock "0:00:36"]

1. e4 {[%clk 0:03:00]}  c6 {[%clk 0:03:00]} 2. Nc3 {[%clk 0:02:59]}  d5 {[%clk 0:03:00]} 3. Nf3 {[%clk 0:02:59]}  dxe4 {[%clk 0:03:00]} 4. Nxe4 {[%clk 0:03:00]}  Nf6 {[%clk 0:03:01]} 5. Qe2 {[%clk 0:03:00]}  Bg4 {[%clk 0:03:01]} 6. Nxf6+ {[%clk 0:02:55]}  gxf6 {[%clk 0:03:02]} 7. h3 {[%clk 0:02:54]}  Bh5 {[%clk 0:02:52]} 8. g3 {[%clk 0:02:49]}  Nd7 {[%clk 0:02:48]} 9. Bg2 {[%clk 0:02:47]}  e6 {[%clk 0:02:49]} 10. O-O {[%clk 0:02:44]}  Ne5 {[%clk 0:02:37]} 11. g4 {[%clk 0:02:32]}  Nxf3+ {[%clk 0:02:36]} 12. Bxf3 {[%clk 0:02:29]}  Bg6 {[%clk 0:02:36]} 13. d3 {[%clk 0:02:26]}  Bd6 {[%clk 0:02:14]} 14. b4 {[%clk 0:02:18]}  h5 {[%clk 0:02:09]} 15. gxh5 {[%clk 0:01:45]}  Bh7 {[%clk 0:01:47]} 16. b5 {[%clk 0:01:38]}  cxb5 {[%clk 0:01:39]} 17. Bxb7 {[%clk 0:01:35]}  Ke7 {[%clk 0:01:40]} 18. Bb2 {[%clk 0:01:20]}  Bf5 {[%clk 0:01:36]} 19. Qf3 {[%clk 0:01:13]}  Rc8 {[%clk 0:01:19]} 20. Bxc8 {[%clk 0:01:02]}  Qxc8 {[%clk 0:01:20]} 21. Rae1 {[%clk 0:01:02]}  e5 {[%clk 0:00:51]} 22. d4 {[%clk 0:00:51]}  Rg8+ {[%clk 0:00:51]} 23. Kh1 {[%clk 0:00:47]}  Bxh3 {[%clk 0:00:48]} 24. dxe5 {[%clk 0:00:39]}  Bg2+ {[%clk 0:00:36]} 25. Qxg2 {[%clk 0:00:37]}  Rxg2 {[%clk 0:00:36]} 26. exd6+ {[%clk 0:00:36]}  Kf8 {[%clk 0:00:36]} 27. Kxg2 {[%clk 0:00:33]}  Qg4+ {[%clk 0:00:35]} 28. Kh2 {[%clk 0:00:33]}  Qh4+ {[%clk 0:00:35]} 29. Kg2 {[%clk 0:00:34]}  Qg4+ {[%clk 0:00:35]} 30. Kh2 {[%clk 0:00:34]}  Qh4+ {[%clk 0:00:36]} 31. Kg2 {[%clk 0:00:34]}  Qg4+ {[%clk 0:00:36]} 1/2-1/2


[Site "https://www.chess.com"]

[Event "Titled Tuesday Blitz October 12 2021"]
[White "Demchenko, Anton"]
[Black "Dzhaparov, Medet"]
[WhiteFideId "4160258"]
[BlackFideId "13803689"]
[WhiteElo "2583"]
[BlackElo "1702"]
[Result "1-0"]
[Round "01"]
[TimeControl "180+1"]
[Date "2021.10.12"]
[WhiteClock "0:00:09"]
[BlackClock "0:00:13"]

1. e4 {[%clk 0:03:00]}  e5 {[%clk 0:02:57]} 2. Nf3 {[%clk 0:03:00]}  Nc6 {[%clk 0:02:56]} 3. Bc4 {[%clk 0:03:01]}  Bc5 {[%clk 0:02:55]} 4. d3 {[%clk 0:03:01]}  Nf6 {[%clk 0:02:54]} 5. Nc3 {[%clk 0:03:02]}  d6 {[%clk 0:02:47]} 6. Na4 {[%clk 0:02:59]}  Bb6 {[%clk 0:02:41]} 7. c3 {[%clk 0:02:58]}  h6 {[%clk 0:02:34]} 8. O-O {[%clk 0:02:57]}  O-O {[%clk 0:02:34]} 9. h3 {[%clk 0:02:55]}  Ne7 {[%clk 0:02:30]} 10. Nxb6 {[%clk 0:02:53]}  axb6 {[%clk 0:02:29]} 11. Bb3 {[%clk 0:02:51]}  Ng6 {[%clk 0:02:28]} 12. Re1 {[%clk 0:02:50]}  Re8 {[%clk 0:02:21]} 13. Bc2 {[%clk 0:02:50]}  Nh5 {[%clk 0:02:14]} 14. d4 {[%clk 0:02:46]}  Nf6 {[%clk 0:01:56]} 15. Bd2 {[%clk 0:02:39]}  Bd7 {[%clk 0:01:49]} 16. Bd3 {[%clk 0:02:35]}  Qe7 {[%clk 0:01:34]} 17. Qc2 {[%clk 0:02:34]}  Rad8 {[%clk 0:01:32]} 18. Rad1 {[%clk 0:02:33]}  Nh5 {[%clk 0:01:28]} 19. Bf1 {[%clk 0:02:27]}  Nhf4 {[%clk 0:01:24]} 20. Kh2 {[%clk 0:02:27]}  Qf6 {[%clk 0:01:23]} 21. Ng1 {[%clk 0:02:18]}  Ne6 {[%clk 0:01:12]} 22. Be3 {[%clk 0:02:14]}  Ng5 {[%clk 0:01:03]} 23. f3 {[%clk 0:02:13]}  Bc8 {[%clk 0:00:41]} 24. Qf2 {[%clk 0:02:09]}  Ne6 {[%clk 0:00:37]} 25. a4 {[%clk 0:02:08]}  Bd7 {[%clk 0:00:33]} 26. b3 {[%clk 0:02:07]}  Nef4 {[%clk 0:00:27]} 27. g3 {[%clk 0:02:07]}  Ne6 {[%clk 0:00:26]} 28. h4 {[%clk 0:02:05]}  Nef8 {[%clk 0:00:17]} 29. Bg2 {[%clk 0:02:00]}  Be6 {[%clk 0:00:16]} 30. Rb1 {[%clk 0:01:55]}  Ra8 {[%clk 0:00:14]} 31. d5 {[%clk 0:01:46]}  Bd7 {[%clk 0:00:13]} 32. c4 {[%clk 0:01:43]}  Ne7 {[%clk 0:00:08]} 33. Rf1 {[%clk 0:01:37]}  Nh7 {[%clk 0:00:07]} 34. Nh3 {[%clk 0:01:21]}  Ng6 {[%clk 0:00:07]} 35. Qd2 {[%clk 0:01:19]}  Ngf8 {[%clk 0:00:05]} 36. Nf2 {[%clk 0:01:17]}  Qe7 {[%clk 0:00:05]} 37. Qc2 {[%clk 0:01:13]}  Nf6 {[%clk 0:00:02]} 38. Bh3 {[%clk 0:01:04]}  N6h7 {[%clk 0:00:02]} 39. Rbe1 {[%clk 0:00:59]}  Bxh3 {[%clk 0:00:01]} 40. Nxh3 {[%clk 0:01:00]}  Qd7 {[%clk 0:00:02]} 41. Qg2 {[%clk 0:00:57]}  Nf6 {[%clk 0:00:03]} 42. Rg1 {[%clk 0:00:53]}  N6h7 {[%clk 0:00:03]} 43. Nf2 {[%clk 0:00:51]}  Ng6 {[%clk 0:00:03]} 44. Qh3 {[%clk 0:00:48]}  Qxh3+ {[%clk 0:00:03]} 45. Kxh3 {[%clk 0:00:49]}  Ne7 {[%clk 0:00:03]} 46. g4 {[%clk 0:00:38]}  g5 {[%clk 0:00:02]} 47. h5 {[%clk 0:00:36]}  Kg7 {[%clk 0:00:02]} 48. Nh1 {[%clk 0:00:36]}  f6 {[%clk 0:00:02]} 49. Ng3 {[%clk 0:00:36]}  Nf8 {[%clk 0:00:03]} 50. Ra1 {[%clk 0:00:37]}  Ra6 {[%clk 0:00:02]} 51. Ra3 {[%clk 0:00:37]}  Rea8 {[%clk 0:00:02]} 52. Rga1 {[%clk 0:00:37]}  Nd7 {[%clk 0:00:03]} 53. b4 {[%clk 0:00:37]}  Kf7 {[%clk 0:00:02]} 54. Kg2 {[%clk 0:00:37]}  Ke8 {[%clk 0:00:02]} 55. Kf2 {[%clk 0:00:37]}  Kf7 {[%clk 0:00:02]} 56. Ke2 {[%clk 0:00:37]}  Ke8 {[%clk 0:00:02]} 57. Kd3 {[%clk 0:00:38]}  Kf7 {[%clk 0:00:03]} 58. Kc3 {[%clk 0:00:38]}  Ke8 {[%clk 0:00:04]} 59. Kb3 {[%clk 0:00:35]}  Kd8 {[%clk 0:00:04]} 60. Rc1 {[%clk 0:00:36]}  Kc8 {[%clk 0:00:04]} 61. c5 {[%clk 0:00:36]}  bxc5 {[%clk 0:00:05]} 62. bxc5 {[%clk 0:00:36]}  dxc5 {[%clk 0:00:06]} 63. Bxc5 {[%clk 0:00:37]}  Nxc5+ {[%clk 0:00:06]} 64. Rxc5 {[%clk 0:00:38]}  Kd7 {[%clk 0:00:07]} 65. Rc4 {[%clk 0:00:27]}  b5 {[%clk 0:00:07]} 66. Rb4 {[%clk 0:00:25]}  bxa4+ {[%clk 0:00:07]} 67. Raxa4 {[%clk 0:00:26]}  Rxa4 {[%clk 0:00:07]} 68. Rxa4 {[%clk 0:00:27]}  Rxa4 {[%clk 0:00:08]} 69. Kxa4 {[%clk 0:00:28]}  c6 {[%clk 0:00:08]} 70. dxc6+ {[%clk 0:00:26]}  Kxc6 {[%clk 0:00:09]} 71. Kb4 {[%clk 0:00:23]}  Kb6 {[%clk 0:00:09]} 72. Kc4 {[%clk 0:00:24]}  Kc6 {[%clk 0:00:10]} 73. Nf1 {[%clk 0:00:16]}  Nc8 {[%clk 0:00:10]} 74. Ne3 {[%clk 0:00:15]}  Nd6+ {[%clk 0:00:11]} 75. Kb4 {[%clk 0:00:16]}  Nb5 {[%clk 0:00:10]} 76. Nf5 {[%clk 0:00:14]}  Nd4 {[%clk 0:00:11]} 77. Nxd4+ {[%clk 0:00:14]}  exd4 {[%clk 0:00:10]} 78. Kc4 {[%clk 0:00:15]}  d3 {[%clk 0:00:11]} 79. Kxd3 {[%clk 0:00:15]}  Kc5 {[%clk 0:00:11]} 80. Kc3 {[%clk 0:00:16]}  Kc6 {[%clk 0:00:11]} 81. Kc4 {[%clk 0:00:15]}  Kd6 {[%clk 0:00:11]} 82. Kd4 {[%clk 0:00:15]}  Ke6 {[%clk 0:00:12]} 83. e5 {[%clk 0:00:09]}  fxe5+ {[%clk 0:00:12]} 84. Ke4 {[%clk 0:00:10]}  Kd6 {[%clk 0:00:09]} 85. Kf5 {[%clk 0:00:10]}  Kd5 {[%clk 0:00:10]} 86. Kg6 {[%clk 0:00:11]}  Kd4 {[%clk 0:00:10]} 87. Kxh6 {[%clk 0:00:11]}  Ke3 {[%clk 0:00:11]} 88. Kxg5 {[%clk 0:00:11]}  Kxf3 {[%clk 0:00:11]} 89. h6 {[%clk 0:00:12]}  e4 {[%clk 0:00:12]} 90. h7 {[%clk 0:00:13]}  e3 {[%clk 0:00:13]} 91. h8=Q {[%clk 0:00:13]}  e2 {[%clk 0:00:14]} 92. Qc3+ {[%clk 0:00:09]}  Kf2 {[%clk 0:00:13]} 93. Qd2 {[%clk 0:00:09]} 1-0


[Site "https://www.chess.com"]

[Event "Titled Tuesday Blitz October 12 2021"]
[White "Dushyant Sharma"]
[Black "Zhalmakhanov, Ramazan"]
[WhiteFideId "25065130"]
[BlackFideId "13706357"]
[WhiteElo "1990"]
[BlackElo "2531"]
[Result "0-1"]
[Round "01"]
[TimeControl "180+1"]
[Date "2021.10.12"]
[WhiteClock "0:00:02"]
[BlackClock "0:00:13"]

1. e4 {[%clk 0:02:37]}  c5 {[%clk 0:02:59]} 2. Nf3 {[%clk 0:02:37]}  d6 {[%clk 0:02:59]} 3. d4 {[%clk 0:02:38]}  cxd4 {[%clk 0:02:59]} 4. Nxd4 {[%clk 0:02:39]}  Nf6 {[%clk 0:03:00]} 5. Nc3 {[%clk 0:02:39]}  Bd7 {[%clk 0:03:00]} 6. f4 {[%clk 0:02:38]}  e5 {[%clk 0:02:57]} 7. Nf3 {[%clk 0:02:37]}  Bc6 {[%clk 0:02:58]} 8. Bd3 {[%clk 0:02:38]}  Nbd7 {[%clk 0:02:58]} 9. O-O {[%clk 0:02:37]}  Be7 {[%clk 0:02:58]} 10. Kh1 {[%clk 0:02:37]}  O-O {[%clk 0:02:58]} 11. Qe1 {[%clk 0:02:32]}  h6 {[%clk 0:02:37]} 12. Bd2 {[%clk 0:02:27]}  Qb6 {[%clk 0:02:33]} 13. Rb1 {[%clk 0:02:18]}  Rac8 {[%clk 0:02:33]} 14. a3 {[%clk 0:02:13]}  Qd8 {[%clk 0:02:28]} 15. fxe5 {[%clk 0:02:00]}  dxe5 {[%clk 0:02:23]} 16. Qg3 {[%clk 0:01:49]}  Nh5 {[%clk 0:02:17]} 17. Qh3 {[%clk 0:01:43]}  Nf4 {[%clk 0:02:08]} 18. Bxf4 {[%clk 0:01:43]}  exf4 {[%clk 0:02:08]} 19. Nd4 {[%clk 0:01:41]}  Bg5 {[%clk 0:02:00]} 20. Rbd1 {[%clk 0:01:35]}  Qe7 {[%clk 0:01:46]} 21. Nf5 {[%clk 0:01:30]}  Qe5 {[%clk 0:01:45]} 22. Nd5 {[%clk 0:01:14]}  Rfe8 {[%clk 0:01:39]} 23. c3 {[%clk 0:01:10]}  Nf6 {[%clk 0:01:15]} 24. Nxf6+ {[%clk 0:00:48]}  Qxf6 {[%clk 0:01:13]} 25. e5 {[%clk 0:00:34]}  Qxe5 {[%clk 0:01:08]} 26. Nd6 {[%clk 0:00:33]}  Rcd8 {[%clk 0:00:50]} 27. Nxe8 {[%clk 0:00:18]}  Rxe8 {[%clk 0:00:51]} 28. Bc4 {[%clk 0:00:15]}  Qe4 {[%clk 0:00:34]} 29. Bd3 {[%clk 0:00:14]}  Qe3 {[%clk 0:00:26]} 30. Qf5 {[%clk 0:00:11]}  g6 {[%clk 0:00:22]} 31. Qg4 {[%clk 0:00:09]}  Kg7 {[%clk 0:00:19]} 32. Bc4 {[%clk 0:00:09]}  Re5 {[%clk 0:00:16]} 33. h3 {[%clk 0:00:06]}  h5 {[%clk 0:00:16]} 34. Qc8 {[%clk 0:00:02]}  f3 {[%clk 0:00:12]} 35. gxf3 {[%clk 0:00:01]}  Bxf3+ {[%clk 0:00:13]} 36. Kh2 {[%clk 0:00:02]}  Bf4# {[%clk 0:00:13]} 0-1


[Site "https://www.chess.com"]

[Event "Titled Tuesday Blitz October 12 2021"]
[White "Gracia Alvarez, Gerardo Antonio"]
[Black "Terry, Renato"]
[WhiteFideId "5109124"]
[BlackFideId "3803457"]
[WhiteElo "2148"]
[BlackElo "2577"]
[Result "0-1"]
[Round "01"]
[TimeControl "180+1"]
[Date "2021.10.12"]
[WhiteClock "0:00:01"]
[BlackClock "0:00:26"]

1. e4 {[%clk 0:02:59]}  e6 {[%clk 0:02:59]} 2. d4 {[%clk 0:02:58]}  d5 {[%clk 0:03:00]} 3. Nd2 {[%clk 0:02:59]}  Be7 {[%clk 0:03:00]} 4. e5 {[%clk 0:02:57]}  c5 {[%clk 0:03:00]} 5. c3 {[%clk 0:02:57]}  Nc6 {[%clk 0:03:00]} 6. Ngf3 {[%clk 0:02:53]}  cxd4 {[%clk 0:03:00]} 7. cxd4 {[%clk 0:02:53]}  Qb6 {[%clk 0:03:01]} 8. Be2 {[%clk 0:02:25]}  Nxd4 {[%clk 0:02:58]} 9. Nxd4 {[%clk 0:02:24]}  Qxd4 {[%clk 0:02:59]} 10. O-O {[%clk 0:02:24]}  Bd7 {[%clk 0:02:52]} 11. Qb3 {[%clk 0:02:21]}  Qxe5 {[%clk 0:02:42]} 12. Re1 {[%clk 0:02:21]}  Qc7 {[%clk 0:02:41]} 13. Nf3 {[%clk 0:02:20]}  Nf6 {[%clk 0:02:41]} 14. Be3 {[%clk 0:02:15]}  O-O {[%clk 0:02:40]} 15. Rec1 {[%clk 0:02:14]}  Qb8 {[%clk 0:02:37]} 16. Bd4 {[%clk 0:02:11]}  Rc8 {[%clk 0:02:32]} 17. Ne5 {[%clk 0:01:55]}  Bd6 {[%clk 0:02:20]} 18. f4 {[%clk 0:01:54]}  Be8 {[%clk 0:02:12]} 19. Qg3 {[%clk 0:01:47]}  Ne4 {[%clk 0:02:10]} 20. Qg4 {[%clk 0:01:41]}  Nf6 {[%clk 0:02:10]} 21. Qg3 {[%clk 0:01:41]}  Rxc1+ {[%clk 0:02:03]} 22. Rxc1 {[%clk 0:01:41]}  Qd8 {[%clk 0:02:04]} 23. Bd3 {[%clk 0:01:33]}  Rc8 {[%clk 0:01:27]} 24. Rf1 {[%clk 0:01:25]}  Bc5 {[%clk 0:01:27]} 25. Bxc5 {[%clk 0:01:18]}  Rxc5 {[%clk 0:01:28]} 26. f5 {[%clk 0:01:18]}  exf5 {[%clk 0:01:25]} 27. Rxf5 {[%clk 0:01:17]}  d4 {[%clk 0:01:20]} 28. Rg5 {[%clk 0:00:54]}  g6 {[%clk 0:01:17]} 29. h4 {[%clk 0:00:31]}  h6 {[%clk 0:01:02]} 30. Nxf7 {[%clk 0:00:25]}  Rc1+ {[%clk 0:01:02]} 31. Kh2 {[%clk 0:00:25]}  Bxf7 {[%clk 0:00:59]} 32. Rxg6+ {[%clk 0:00:24]}  Kf8 {[%clk 0:00:51]} 33. Rxh6 {[%clk 0:00:21]}  Rc6 {[%clk 0:00:28]} 34. Rh8+ {[%clk 0:00:18]}  Bg8 {[%clk 0:00:28]} 35. Qg6 {[%clk 0:00:09]}  Qc7+ {[%clk 0:00:26]} 36. Kh3 {[%clk 0:00:06]}  Qg7 {[%clk 0:00:26]} 37. Qf5 {[%clk 0:00:01]}  Ke7 {[%clk 0:00:26]} 0-1


[Site "https://www.chess.com"]

[Event "Titled Tuesday Blitz October 12 2021"]
[White "Ibrahimli, Murad"]
[Black "Balabayeva, Xeniya"]
[WhiteFideId "13410229"]
[BlackFideId "13719688"]
[WhiteElo "2109"]
[BlackElo "1965"]
[Result "1-0"]
[Round "01"]
[TimeControl "180+1"]
[Date "2021.10.12"]
[WhiteClock "0:00:38"]
[BlackClock "0:00:02"]

1. Nf3 {[%clk 0:03:00]}  d5 {[%clk 0:02:59]} 2. g3 {[%clk 0:02:59]}  c5 {[%clk 0:02:57]} 3. Bg2 {[%clk 0:02:59]}  Nc6 {[%clk 0:02:57]} 4. d4 {[%clk 0:02:57]}  cxd4 {[%clk 0:02:50]} 5. Nxd4 {[%clk 0:02:58]}  Nf6 {[%clk 0:02:49]} 6. O-O {[%clk 0:02:57]}  Bd7 {[%clk 0:02:42]} 7. c4 {[%clk 0:02:49]}  Nxd4 {[%clk 0:02:09]} 8. Qxd4 {[%clk 0:02:47]}  Bc6 {[%clk 0:01:57]} 9. Nc3 {[%clk 0:02:47]}  dxc4 {[%clk 0:01:43]} 10. Bxc6+ {[%clk 0:02:46]}  bxc6 {[%clk 0:01:44]} 11. Qxc4 {[%clk 0:02:46]}  Qc8 {[%clk 0:01:38]} 12. Bg5 {[%clk 0:02:44]}  Nd7 {[%clk 0:01:28]} 13. Rad1 {[%clk 0:02:40]}  Nb6 {[%clk 0:01:14]} 14. Qh4 {[%clk 0:02:29]}  f6 {[%clk 0:01:01]} 15. Be3 {[%clk 0:02:26]}  e6 {[%clk 0:00:54]} 16. Bd4 {[%clk 0:01:53]}  Be7 {[%clk 0:00:48]} 17. e4 {[%clk 0:01:41]}  e5 {[%clk 0:00:33]} 18. Be3 {[%clk 0:01:37]}  O-O {[%clk 0:00:32]} 19. b3 {[%clk 0:01:30]}  Qe6 {[%clk 0:00:31]} 20. Qh5 {[%clk 0:01:28]}  Rfd8 {[%clk 0:00:30]} 21. Qe2 {[%clk 0:01:25]}  Bb4 {[%clk 0:00:24]} 22. Qc2 {[%clk 0:01:23]}  Rd7 {[%clk 0:00:10]} 23. Rxd7 {[%clk 0:01:22]}  Qxd7 {[%clk 0:00:11]} 24. Rd1 {[%clk 0:01:22]}  Qe6 {[%clk 0:00:11]} 25. Kg2 {[%clk 0:01:21]}  Kf7 {[%clk 0:00:07]} 26. Nb1 {[%clk 0:01:16]}  Rc8 {[%clk 0:00:05]} 27. a3 {[%clk 0:01:16]}  Be7 {[%clk 0:00:03]} 28. a4 {[%clk 0:01:16]}  c5 {[%clk 0:00:03]} 29. a5 {[%clk 0:01:13]}  Nd7 {[%clk 0:00:04]} 30. Na3 {[%clk 0:01:13]}  a6 {[%clk 0:00:03]} 31. Nc4 {[%clk 0:01:10]}  Nb8 {[%clk 0:00:03]} 32. Nb6 {[%clk 0:01:08]}  Rd8 {[%clk 0:00:03]} 33. Rxd8 {[%clk 0:01:07]}  Bxd8 {[%clk 0:00:04]} 34. Qxc5 {[%clk 0:01:07]}  Nc6 {[%clk 0:00:04]} 35. Nc4 {[%clk 0:01:05]}  Be7 {[%clk 0:00:03]} 36. Qb6 {[%clk 0:01:03]}  Bb4 {[%clk 0:00:02]} 37. Qxa6 {[%clk 0:01:01]}  Nxa5 {[%clk 0:00:02]} 38. Qa7+ {[%clk 0:00:53]}  Qe7 {[%clk 0:00:02]} 39. Qb6 {[%clk 0:00:50]}  Nxc4 {[%clk 0:00:02]} 40. bxc4 {[%clk 0:00:50]}  Bd6 {[%clk 0:00:02]} 41. c5 {[%clk 0:00:49]}  Bc7 {[%clk 0:00:03]} 42. Qb3+ {[%clk 0:00:49]}  Qe6 {[%clk 0:00:03]} 43. Qd5 {[%clk 0:00:48]}  Ke7 {[%clk 0:00:02]} 44. h4 {[%clk 0:00:44]}  h5 {[%clk 0:00:01]} 45. Qb7 {[%clk 0:00:41]}  Qd7 {[%clk 0:00:01]} 46. c6 {[%clk 0:00:41]}  Qd6 {[%clk 0:00:01]} 47. Bc5 {[%clk 0:00:40]}  Qxc5 {[%clk 0:00:01]} 48. Qxc7+ {[%clk 0:00:41]}  Kf8 {[%clk 0:00:01]} 49. Qd8+ {[%clk 0:00:40]}  Kf7 {[%clk 0:00:01]} 50. c7 {[%clk 0:00:38]}  Qc4 {[%clk 0:00:02]} 51. Qd5+ {[%clk 0:00:38]} 1-0


[Site "https://www.chess.com"]

[Event "Titled Tuesday Blitz October 12 2021"]
[White "Kamsky, Gata"]
[Black "Altman, Joshua"]
[WhiteFideId "2000024"]
[BlackFideId "426210"]
[WhiteElo "2603"]
[BlackElo "1945"]
[Result "1-0"]
[Round "01"]
[TimeControl "180+1"]
[Date "2021.10.12"]
[WhiteClock "0:00:15"]
[BlackClock "0:00:06"]

1. e4 {[%clk 0:03:00]}  e6 {[%clk 0:03:00]} 2. d4 {[%clk 0:02:59]}  d5 {[%clk 0:03:00]} 3. exd5 {[%clk 0:02:59]}  exd5 {[%clk 0:03:00]} 4. Nf3 {[%clk 0:02:59]}  Nf6 {[%clk 0:03:01]} 5. Bd3 {[%clk 0:02:59]}  Bd6 {[%clk 0:03:01]} 6. Qe2+ {[%clk 0:02:58]}  Be6 {[%clk 0:03:00]} 7. Ng5 {[%clk 0:02:57]}  Qe7 {[%clk 0:03:00]} 8. Nxe6 {[%clk 0:02:56]}  fxe6 {[%clk 0:02:59]} 9. Nd2 {[%clk 0:02:52]}  Nbd7 {[%clk 0:02:59]} 10. Nf3 {[%clk 0:02:50]}  O-O {[%clk 0:02:59]} 11. O-O {[%clk 0:02:40]}  Rae8 {[%clk 0:02:56]} 12. c3 {[%clk 0:02:37]}  c6 {[%clk 0:02:51]} 13. Re1 {[%clk 0:02:32]}  e5 {[%clk 0:02:47]} 14. dxe5 {[%clk 0:02:31]}  Nxe5 {[%clk 0:02:47]} 15. Nxe5 {[%clk 0:02:30]}  Bxe5 {[%clk 0:02:44]} 16. Bf4 {[%clk 0:02:27]}  Nd7 {[%clk 0:02:38]} 17. Be3 {[%clk 0:02:09]}  Qd6 {[%clk 0:02:32]} 18. g3 {[%clk 0:02:02]}  Nf6 {[%clk 0:02:27]} 19. Rad1 {[%clk 0:01:57]}  Qc7 {[%clk 0:02:24]} 20. Bf5 {[%clk 0:01:50]}  Bd6 {[%clk 0:02:19]} 21. Qd3 {[%clk 0:01:43]}  Ne4 {[%clk 0:02:18]} 22. Bh3 {[%clk 0:01:31]}  Bc5 {[%clk 0:02:10]} 23. Bxc5 {[%clk 0:01:26]}  Nxc5 {[%clk 0:02:11]} 24. Qd4 {[%clk 0:01:24]}  Ne4 {[%clk 0:02:07]} 25. f4 {[%clk 0:01:23]}  b6 {[%clk 0:01:46]} 26. Bg2 {[%clk 0:01:22]}  Nf6 {[%clk 0:01:44]} 27. Bf3 {[%clk 0:01:15]}  h6 {[%clk 0:01:34]} 28. Kg2 {[%clk 0:01:14]}  Kh8 {[%clk 0:01:34]} 29. Qd3 {[%clk 0:01:13]}  Qf7 {[%clk 0:01:28]} 30. b3 {[%clk 0:01:10]}  Re7 {[%clk 0:01:24]} 31. c4 {[%clk 0:01:06]}  Rfe8 {[%clk 0:01:19]} 32. Rxe7 {[%clk 0:01:05]}  Qxe7 {[%clk 0:01:18]} 33. Rd2 {[%clk 0:01:02]}  Qe1 {[%clk 0:01:13]} 34. cxd5 {[%clk 0:00:54]}  Nxd5 {[%clk 0:01:12]} 35. Bxd5 {[%clk 0:00:52]}  cxd5 {[%clk 0:01:13]} 36. a4 {[%clk 0:00:38]}  Rc8 {[%clk 0:00:42]} 37. Qxd5 {[%clk 0:00:34]}  Rc1 {[%clk 0:00:42]} 38. Qd8+ {[%clk 0:00:34]}  Kh7 {[%clk 0:00:42]} 39. Qd3+ {[%clk 0:00:34]}  Kh8 {[%clk 0:00:42]} 40. Kh3 {[%clk 0:00:33]}  Qe6+ {[%clk 0:00:22]} 41. f5 {[%clk 0:00:31]}  Qe1 {[%clk 0:00:14]} 42. Qe2 {[%clk 0:00:27]}  Qxe2 {[%clk 0:00:09]} 43. Rxe2 {[%clk 0:00:27]}  Rc3 {[%clk 0:00:10]} 44. Re8+ {[%clk 0:00:27]}  Kh7 {[%clk 0:00:10]} 45. Re7 {[%clk 0:00:28]}  Rxb3 {[%clk 0:00:10]} 46. f6 {[%clk 0:00:28]}  Kg6 {[%clk 0:00:09]} 47. fxg7 {[%clk 0:00:27]}  Kh7 {[%clk 0:00:09]} 48. Rxa7 {[%clk 0:00:28]}  Ra3 {[%clk 0:00:10]} 49. Kh4 {[%clk 0:00:26]}  b5 {[%clk 0:00:10]} 50. a5 {[%clk 0:00:26]}  b4 {[%clk 0:00:10]} 51. Kh5 {[%clk 0:00:25]}  b3 {[%clk 0:00:10]} 52. g8=Q+ {[%clk 0:00:23]}  Kxg8 {[%clk 0:00:10]} 53. Kxh6 {[%clk 0:00:23]}  b2 {[%clk 0:00:10]} 54. Rb7 {[%clk 0:00:23]}  Rxa5 {[%clk 0:00:07]} 55. Rxb2 {[%clk 0:00:23]}  Ra6+ {[%clk 0:00:08]} 56. Kh5 {[%clk 0:00:23]}  Ra5+ {[%clk 0:00:08]} 57. Kh4 {[%clk 0:00:23]}  Ra6 {[%clk 0:00:09]} 58. g4 {[%clk 0:00:24]}  Rh6+ {[%clk 0:00:09]} 59. Kg3 {[%clk 0:00:22]}  Ra6 {[%clk 0:00:10]} 60. h4 {[%clk 0:00:22]}  Kg7 {[%clk 0:00:11]} 61. g5 {[%clk 0:00:21]}  Kg6 {[%clk 0:00:11]} 62. Rf2 {[%clk 0:00:20]}  Ra3+ {[%clk 0:00:11]} 63. Kg4 {[%clk 0:00:20]}  Ra4+ {[%clk 0:00:12]} 64. Rf4 {[%clk 0:00:21]}  Ra5 {[%clk 0:00:12]} 65. h5+ {[%clk 0:00:21]}  Kg7 {[%clk 0:00:12]} 66. h6+ {[%clk 0:00:21]}  Kg6 {[%clk 0:00:12]} 67. Rf6+ {[%clk 0:00:20]}  Kh7 {[%clk 0:00:13]} 68. Kh5 {[%clk 0:00:21]}  Rb5 {[%clk 0:00:12]} 69. Rf7+ {[%clk 0:00:21]}  Kg8 {[%clk 0:00:13]} 70. Rd7 {[%clk 0:00:21]}  Kh8 {[%clk 0:00:12]} 71. Kg6 {[%clk 0:00:19]}  Rb6+ {[%clk 0:00:13]} 72. Kf5 {[%clk 0:00:19]}  Rb5+ {[%clk 0:00:13]} 73. Kf6 {[%clk 0:00:19]}  Rb6+ {[%clk 0:00:14]} 74. Kf7 {[%clk 0:00:17]}  Kh7 {[%clk 0:00:09]} 75. Re7 {[%clk 0:00:17]}  Kh8 {[%clk 0:00:06]} 76. Re6 {[%clk 0:00:16]}  Rb7+ {[%clk 0:00:06]} 77. Kg6 {[%clk 0:00:17]}  Rb8 {[%clk 0:00:05]} 78. Kh5 {[%clk 0:00:16]}  Rg8 {[%clk 0:00:05]} 79. g6 {[%clk 0:00:16]}  Rb8 {[%clk 0:00:05]} 80. Rf6 {[%clk 0:00:16]}  Rb5+ {[%clk 0:00:05]} 81. Kg4 {[%clk 0:00:16]}  Rb8 {[%clk 0:00:06]} 82. Kg5 {[%clk 0:00:16]}  Rb5+ {[%clk 0:00:06]} 83. Rf5 {[%clk 0:00:16]}  Rb8 {[%clk 0:00:07]} 84. Re5 {[%clk 0:00:16]}  Rf8 {[%clk 0:00:06]} 85. Re7 {[%clk 0:00:15]} 1-0


[Site "https://www.chess.com"]

[Event "Titled Tuesday Blitz October 12 2021"]
[White "Kotepalli, Sai Nirupama"]
[Black "Kollars, Dmitrij"]
[WhiteFideId "5039444"]
[BlackFideId "12909572"]
[WhiteElo "2470"]
[BlackElo "2584"]
[Result "0-1"]
[Round "01"]
[TimeControl "180+1"]
[Date "2021.10.12"]
[WhiteClock "0:00:56"]
[BlackClock "0:01:02"]

1. e4 {[%clk 0:02:57]}  c6 {[%clk 0:03:00]} 2. d3 {[%clk 0:02:56]}  d5 {[%clk 0:02:59]} 3. Nd2 {[%clk 0:02:44]}  e5 {[%clk 0:02:58]} 4. Ngf3 {[%clk 0:02:43]}  Bd6 {[%clk 0:02:58]} 5. g3 {[%clk 0:02:42]}  Nf6 {[%clk 0:02:56]} 6. Bg2 {[%clk 0:02:42]}  O-O {[%clk 0:02:57]} 7. O-O {[%clk 0:02:42]}  dxe4 {[%clk 0:02:54]} 8. Nxe4 {[%clk 0:02:40]}  Nxe4 {[%clk 0:02:54]} 9. dxe4 {[%clk 0:02:41]}  a5 {[%clk 0:02:54]} 10. c3 {[%clk 0:02:40]}  Na6 {[%clk 0:02:53]} 11. Be3 {[%clk 0:02:39]}  Be6 {[%clk 0:02:50]} 12. Qe2 {[%clk 0:02:38]}  h6 {[%clk 0:02:48]} 13. b3 {[%clk 0:02:36]}  a4 {[%clk 0:02:45]} 14. c4 {[%clk 0:02:34]}  Qc7 {[%clk 0:02:39]} 15. Rad1 {[%clk 0:02:32]}  Rfd8 {[%clk 0:02:35]} 16. Nh4 {[%clk 0:02:20]}  axb3 {[%clk 0:02:33]} 17. axb3 {[%clk 0:02:20]}  Bc5 {[%clk 0:02:33]} 18. Nf5 {[%clk 0:02:15]}  Bxe3 {[%clk 0:02:32]} 19. Qxe3 {[%clk 0:02:12]}  Nb4 {[%clk 0:02:27]} 20. Qc5 {[%clk 0:02:06]}  Nd3 {[%clk 0:02:15]} 21. Qe3 {[%clk 0:01:56]}  Nb4 {[%clk 0:02:15]} 22. Qc5 {[%clk 0:01:54]}  Nc2 {[%clk 0:02:15]} 23. Qe7 {[%clk 0:01:46]}  Qxe7 {[%clk 0:02:11]} 24. Nxe7+ {[%clk 0:01:44]}  Kf8 {[%clk 0:02:12]} 25. Nf5 {[%clk 0:01:43]}  g6 {[%clk 0:02:02]} 26. Ne3 {[%clk 0:01:33]}  Nxe3 {[%clk 0:02:02]} 27. fxe3 {[%clk 0:01:29]}  Rxd1 {[%clk 0:02:00]} 28. Rxd1 {[%clk 0:01:27]}  Ke7 {[%clk 0:02:01]} 29. Rd3 {[%clk 0:01:22]}  Ra3 {[%clk 0:01:59]} 30. Bf1 {[%clk 0:01:20]}  b5 {[%clk 0:01:42]} 31. cxb5 {[%clk 0:01:17]}  cxb5 {[%clk 0:01:43]} 32. Rc3 {[%clk 0:01:14]}  b4 {[%clk 0:01:40]} 33. Rc5 {[%clk 0:01:11]}  Kd6 {[%clk 0:01:38]} 34. Rb5 {[%clk 0:01:11]}  Rxb3 {[%clk 0:01:34]} 35. Kf2 {[%clk 0:01:07]}  Rb2+ {[%clk 0:01:34]} 36. Kf3 {[%clk 0:01:07]}  h5 {[%clk 0:01:27]} 37. h3 {[%clk 0:01:06]}  b3 {[%clk 0:01:13]} 38. g4 {[%clk 0:01:04]}  h4 {[%clk 0:01:12]} 39. Bd3 {[%clk 0:01:02]}  Rd2 {[%clk 0:01:04]} 40. Bf1 {[%clk 0:01:01]}  b2 {[%clk 0:01:03]} 41. Rb8 {[%clk 0:00:57]}  Kc7 {[%clk 0:01:02]} 42. Rb4 {[%clk 0:00:56]}  Ba2 {[%clk 0:01:02]} 0-1


[Site "https://www.chess.com"]